bitfinex/quotes_SOLUSD_20250321
["timestamp","ask_amount","ask_price","bid_price","bid_amount"]
[1742583085842,7.8241,127.81,127.78,43.12123253]
[1742583086844,7.8241,127.81,127.78,8.69]
[1742583088341,7.8241,127.81,127.78,34.46123253]
[1742583088531,0.063,127.83,127.8,34.43123253]
[1742583088928,7.886,127.83,127.79,34.71555567]
[1742583089138,42.31723253,127.83,127.79,0.28432314]
[1742583089335,7.886,127.83,127.79,0.28432314]
[1742583089535,0.063,127.83,127.8,34.43123253]
[1742583089734,0.063,127.83,127.82,53.36520453]
[1742583090451,0.063,127.83,127.82,53.64952767]
[1742583091249,0.063,127.83,127.82,61.47302767]
[1742583091549,0.063,127.83,127.82,63.03693388]
[1742583091746,7.8806,127.92,127.83,18.933972]
[1742583092043,20.063,127.92,127.9,34.43123253]
[1742583092219,0.063,127.92,127.9,34.43123253]
[1742583092622,0.063,127.92,127.91,34.43123253]
[1742583093024,0.063,127.92,127.91,34.71555567]
[1742583093226,0.063,127.92,127.89,43.07123253]
[1742583093437,0.063,127.92,127.89,8.64]
[1742583094252,34.49423253,127.92,127.87,43.07123253]
[1742583094449,0.063,127.92,127.89,34.43123253]
[1742583094746,0.063,127.92,127.88,34.71555567]
[1742583095046,34.43123253,127.91,127.86,43.07123253]
[1742583095251,7.8803,127.92,127.88,34.43123253]
[1742583095753,7.8803,127.92,127.89,34.43123253]
[1742583096249,0.063,127.92,127.9,34.43123253]
[1742583096450,0.063,127.92,127.91,34.43123253]
[1742583096762,0.063,127.92,127.9,43.07123253]
[1742583098847,0.063,127.92,127.91,96.3629602]
[1742583099144,0.063,128.0,127.91,96.3629602]
[1742583099453,0.063,128.0,127.97,34.43123253]
[1742583099648,0.063,128.0,127.94,18.64964886]
[1742583099649,0.063,128.0,127.98,34.43123253]
[1742583101032,0.063,128.0,127.97,34.71555567]
[1742583101642,0.063,128.0,127.98,34.43123253]
[1742583102938,0.063,128.0,127.97,34.71555567]
[1742583104766,0.063,128.0,127.98,34.43123253]
[1742583104938,0.063,128.0,127.99,34.99987881]
[1742583105134,0.063,128.0,127.99,53.64952767]
[1742583105660,0.063,128.0,127.99,61.46262767]
[1742583105835,0.063,128.0,127.99,42.52865567]
[1742583106038,0.063,128.0,127.99,61.17830453]
[1742583107465,34.18323253,128.06,128.0,18.64964886]
[1742583107665,34.43123253,128.07,128.0,27.26964886]
[1742583107870,34.43123253,128.07,128.02,34.43123253]
[1742583108068,42.23973253,128.07,128.02,34.43123253]
[1742583109063,7.81,128.04,128.0,8.62]
[1742583110454,7.81,128.04,128.0,43.05123253]
[1742583111765,7.81,128.04,128.01,34.5733941]
[1742583111950,7.8088,128.06,128.02,34.43123253]
[1742583112351,7.8084,128.07,128.03,34.43123253]
[1742583114059,42.36563253,128.08,128.06,34.43123253]
[1742583114060,11.4778,128.08,128.06,34.43123253]
[1742583114262,11.4778,128.08,128.04,43.05123253]
[1742583114569,65.42803253,128.08,128.04,8.62]
[1742583114763,34.43123253,128.07,128.02,34.71555567]
[1742583114938,34.43123253,128.07,128.01,8.62]
[1742583114939,34.43123253,128.05,128.01,8.62]
[1742583115143,34.43123253,128.06,128.01,43.05123253]
[1742583115555,7.8094,128.05,128.02,34.43123253]
[1742583116371,7.8094,128.05,128.02,0.28432314]
[1742583116552,42.24063253,128.05,128.01,0.28432314]
[1742583117077,7.8094,128.05,128.01,34.71555567]
[1742583117571,7.8094,128.05,128.02,34.43123253]
[1742583118577,7.8094,128.05,128.01,34.71555567]
[1742583119074,3.67,128.08,128.07,20.0]
[1742583119274,3.67,128.08,128.07,61.98520453]
[1742583119573,0.063,128.12,128.08,0.28432314]
[1742583119758,0.063,128.12,128.1,34.43123253]
[1742583120174,0.063,128.12,128.11,34.43123253]
[1742583121368,0.063,128.12,128.1,34.43123253]
[1742583122460,0.063,128.12,128.11,34.71555567]
[1742583122858,0.063,128.12,128.11,43.33555567]
[1742583123954,0.063,128.12,128.1,7.8061]
[1742583123955,0.063,128.12,128.1,34.43123253]
[1742583124282,0.063,128.12,128.09,34.71555567]
[1742583124574,0.063,128.12,128.09,34.43123253]
[1742583124875,0.063,128.12,128.1,34.43123253]
[1742583125362,0.063,128.12,128.09,0.28432314]
[1742583125964,20.0,128.11,128.08,34.43123253]
[1742583126173,20.0,128.11,128.07,34.43123253]
[1742583126479,20.0,128.11,128.08,0.28432314]
[1742583126769,0.063,128.12,128.1,0.28432314]
[1742583126968,0.063,128.12,128.1,34.71555567]
[1742583127673,0.063,128.12,128.11,34.43123253]
[1742583127856,0.063,128.12,128.11,0.28432314]
[1742583129176,0.063,128.12,128.11,34.71555567]
[1742583129681,0.063,128.12,128.11,42.52125567]
[1742583129980,0.063,128.12,128.11,61.45522767]
[1742583131665,0.063,128.12,128.11,70.07522767]
[1742583132256,0.063,128.12,128.11,61.98520453]
[1742583132455,0.063,128.12,128.11,27.553972]
[1742583132681,0.063,128.12,128.11,8.90432314]
[1742583133575,0.063,128.12,128.11,8.62]
[1742583133880,0.063,128.12,128.09,0.28432314]
[1742583134080,0.063,128.12,128.09,34.71555567]
[1742583134481,0.063,128.12,128.1,18.64964886]
[1742583134776,0.063,128.12,128.09,34.71555567]
[1742583135080,0.063,128.12,128.11,34.43123253]
[1742583136580,0.063,128.12,128.1,34.71555567]
[1742583137086,0.063,128.12,128.1,42.52185567]
[1742583137273,0.063,128.12,128.1,34.71555567]
[1742583137478,0.063,128.12,128.1,42.52185567]
[1742583138485,0.063,128.12,128.11,42.23693253]
[1742583138686,0.063,128.12,128.1,34.71555567]
[1742583138980,0.063,128.12,128.11,53.36520453]
[1742583140478,0.063,128.12,128.11,61.17090453]
[1742583141188,0.063,128.12,128.11,40.3461499]
[1742583141369,0.063,128.12,128.11,48.43617304]
[1742583141787,0.063,128.12,128.11,40.3461499]
[1742583141992,0.063,128.12,128.11,18.933972]
[1742583142490,0.063,128.12,128.11,0.28432314]
[1742583144479,0.063,128.12,128.1,0.28432314]
[1742583145593,0.063,128.12,128.1,21.69650104]
[1742583145987,0.063,128.12,128.1,0.28432314]
[1742583146793,0.063,128.12,128.1,8.09062314]
[1742583146975,0.063,128.12,128.1,29.50280104]
[1742583147675,0.063,128.12,128.1,21.69650104]
[1742583148296,0.063,128.12,128.1,29.50270104]
[1742583148682,0.063,128.12,128.1,0.28432314]
[1742583149483,0.063,128.12,128.1,48.1523499]
[1742583149682,0.063,128.12,128.1,40.3461499]
[1742583150097,0.063,128.12,128.1,48.1524499]
[1742583151001,0.063,128.12,128.1,21.69650104]
[1742583151301,0.063,128.12,128.1,0.28432314]
[1742583153811,21.4751779,128.12,128.07,30.0121779]
[1742583154114,21.4751779,128.12,128.08,0.28432314]
[1742583155409,7.8057,128.11,128.08,21.69650104]
[1742583156490,7.8681,128.12,128.08,21.69650104]
[1742583156924,0.063,128.12,128.09,48.1531499]
[1742583157087,0.063,128.12,128.09,21.4121779]
[1742583157287,0.063,128.12,128.09,0.14216157]
[1742583157701,21.4751779,128.12,128.08,0.14216157]
[1742583157918,21.4751779,128.12,128.08,0.28432314]
[1742583158106,0.063,128.12,128.08,21.69650104]
[1742583158812,21.4751779,128.12,128.08,0.28432314]
[1742583161314,0.063,128.12,128.08,29.50390104]
[1742583162213,21.4121779,128.09,128.06,0.03]
[1742583162418,21.4121779,128.09,128.01,4.4452]
[1742583162419,20.0,128.01,127.92,19.542]
[1742583162625,41.4121779,128.0,127.9,53.48126406]
[1742583162910,41.4121779,128.0,127.91,33.36584602]
[1742583163123,41.4121779,128.0,127.92,40.3461499]
[1742583163324,49.2246779,128.0,127.92,8.6]
[1742583163814,49.50900104,128.0,127.92,8.6]
[1742583164017,49.50900104,128.0,127.99,0.0001]
[1742583166112,49.50900104,128.0,127.89,0.14216157]
[1742583166113,4.2553,127.98,127.89,21.4121779]
[1742583166417,21.4121779,127.94,127.9,0.28432314]
[1742583166953,21.4121779,127.94,127.88,18.64964886]
[1742583167107,21.4121779,127.94,127.89,0.28432314]
[1742583167519,29.2282779,127.94,127.86,21.4421779]
[1742583167735,37.8282779,127.94,127.86,18.67964886]
[1742583168022,37.8282779,127.94,127.87,0.28432314]
[1742583168238,56.7622499,127.94,127.86,0.03]
[1742583168522,20.0,127.91,127.86,0.31432314]
[1742583168696,21.4121779,127.89,127.86,0.31432314]
[1742583170326,29.2313779,127.89,127.86,0.31432314]
[1742583170529,21.4121779,127.9,127.86,0.31432314]
[1742583170707,20.0,127.91,127.88,0.28432314]
[1742583170912,20.0,127.91,127.88,21.69650104]
[1742583171303,21.4121779,127.93,127.88,21.69650104]
[1742583172734,21.4121779,127.92,127.88,0.28432314]
[1742583174007,21.4121779,127.91,127.88,0.28432314]
[1742583174707,21.4121779,127.92,127.88,0.28432314]
[1742583175922,21.4121779,127.93,127.88,29.51630104]
[1742583176304,21.4121779,127.94,127.9,0.28432314]
[1742583177231,21.4121779,127.93,127.9,0.28432314]
[1742583177605,7.8158,127.95,127.9,0.28432314]
[1742583177606,21.4121779,127.94,127.9,0.28432314]
[1742583178100,21.4121779,127.94,127.91,7.8179]
[1742583178314,21.4121779,127.94,127.9,8.10272314]
[1742583182027,21.4121779,127.93,127.9,0.28432314]
[1742583182213,21.4121779,127.93,127.9,8.10272314]
[1742583182419,21.4121779,127.93,127.9,8.13272314]
[1742583182639,20.0,127.93,127.9,8.13272314]
[1742583183045,20.0,127.93,127.9,0.31432314]
[1742583183747,41.4121779,127.93,127.9,0.31432314]
[1742583184047,41.4121779,127.93,127.9,8.13272314]
[1742583184343,20.0,127.93,127.9,8.13272314]
[1742583184548,41.4121779,127.94,127.9,8.13272314]
[1742583185045,20.0,127.94,127.9,8.13272314]
[1742583185228,41.4121779,127.94,127.9,8.13272314]
[1742583185942,21.4121779,127.96,127.91,21.4121779]
[1742583186122,21.4121779,127.97,127.93,0.28432314]
[1742583186316,21.4121779,127.95,127.9,30.0421779]
[1742583186521,21.4121779,127.91,127.9,0.03]
[1742583187639,29.2300779,127.91,127.9,0.03]
[1742583189465,21.4121779,127.91,127.9,0.03]
[1742583189649,28.1377,127.96,127.9,0.03]
[1742583189650,21.4121779,127.92,127.9,0.03]
[1742583190144,21.4121779,127.91,127.9,0.03]
[1742583191749,29.2300779,127.91,127.9,0.03]
[1742583192352,33.61790104,127.91,127.9,0.03]
[1742583193223,52.2675499,127.91,127.9,0.03]
[1742583193535,20.0,127.87,127.86,0.03]
[1742583193853,70.92907894,127.87,127.86,0.03]
[1742583194031,72.4825169,127.87,127.86,0.03]
[1742583194458,91.13216576,127.87,127.86,0.03]
[1742583194751,91.13216576,127.87,127.83,0.03]
[1742583194752,21.4121779,127.84,127.83,0.03]
[1742583199852,1.8377611,127.88,127.83,0.03]
[1742583200050,21.4121779,127.85,127.83,0.03]
[1742583200845,21.4121779,127.84,127.83,0.03]
[1742583201940,35.286739,127.84,127.83,0.03]
[1742583202734,33.73330104,127.84,127.83,0.03]
[1742583203138,21.4121779,127.84,127.83,0.03]
[1742583203349,29.2343779,127.84,127.83,0.03]
[1742583203932,31.072139,127.84,127.83,0.03]
[1742583204650,20.0,127.81,127.78,0.03]
[1742583204840,21.4121779,127.79,127.78,0.03]
[1742583205039,7.8253,127.79,127.78,0.03]
[1742583205336,29.2374779,127.79,127.78,0.03]
[1742583205732,29.52180104,127.79,127.78,0.03]
[1742583208056,29.2374779,127.79,127.78,0.03]
[1742583208464,31.075239,127.79,127.78,0.03]
[1742583208838,49.72488786,127.79,127.78,0.03]
[1742583210847,18.933972,127.78,127.77,0.03]
[1742583211053,18.933972,127.78,127.75,0.03]
[1742583211054,20.0,127.76,127.75,0.03]
[1742583211252,0.28432314,127.75,127.67,12.6774]
[1742583211457,21.4121779,127.7,127.67,20.5098]
[1742583211654,21.4121779,127.69,127.65,7.8339]
[1742583211853,21.4121779,127.69,127.66,0.28432314]
[1742583212171,21.4121779,127.69,127.65,7.8339]
[1742583212355,21.4121779,127.68,127.65,7.8339]
[1742583212752,21.4121779,127.69,127.66,0.28432314]
[1742583212956,21.4121779,127.7,127.66,0.28432314]
[1742583213664,21.4121779,127.71,127.67,7.8326]
[1742583214239,21.4121779,127.71,127.66,29.52950104]
[1742583214873,21.4121779,127.73,127.68,21.69650104]
[1742583215450,21.4121779,127.74,127.69,21.4121779]
[1742583215764,21.4121779,127.74,127.7,7.8308]
[1742583216168,21.4121779,127.75,127.7,7.8308]
[1742583216672,21.4121779,127.74,127.7,7.8308]
[1742583217251,21.4121779,127.73,127.7,7.8308]
[1742583218069,21.4121779,127.74,127.7,7.8308]
[1742583220187,21.4121779,127.75,127.7,7.8308]
[1742583220554,1.55343796,127.78,127.71,21.69650104]
[1742583220878,21.4121779,127.77,127.72,21.4121779]
[1742583221055,21.4121779,127.78,127.73,21.4121779]
[1742583221251,0.063,127.75,127.73,0.28432314]
[1742583221471,0.063,127.75,127.72,0.14216157]
[1742583221676,0.063,127.75,127.71,16.4101]
[1742583222184,0.063,127.75,127.71,37.8222779]
[1742583223480,0.063,127.75,127.72,21.69650104]
[1742583223780,0.063,127.75,127.72,8.11342314]
[1742583225076,0.063,127.75,127.72,0.28432314]
[1742583225287,0.063,127.75,127.72,8.11382314]
[1742583225777,21.4751779,127.75,127.71,8.58]
[1742583226780,29.3033779,127.75,127.71,8.58]
[1742583227087,21.4121779,127.74,127.7,0.28432314]
[1742583228358,29.2410779,127.74,127.7,0.28432314]
[1742583228978,29.2410779,127.74,127.69,8.3777]
[1742583229577,29.2410779,127.74,127.69,37.6211779]
[1742583230163,29.3031779,127.75,127.7,21.4121779]
[1742583230362,7.891,127.75,127.7,21.4121779]
[1742583230581,21.4751779,127.75,127.7,29.2426779]
[1742583231588,7.8911,127.75,127.7,29.2426779]
[1742583231792,29.3032779,127.75,127.7,29.2426779]
[1742583232095,7.8908,127.75,127.71,21.4121779]
[1742583232260,7.8908,127.75,127.7,29.2426779]
[1742583233191,0.063,127.75,127.7,29.2426779]
[1742583233894,21.4751779,127.75,127.7,0.03]
[1742583234191,21.4751779,127.75,127.7,29.2729779]
[1742583234383,21.4751779,127.75,127.7,21.4421779]
[1742583234575,0.063,127.75,127.7,21.4421779]
[1742583234775,21.4751779,127.75,127.7,29.2728779]
[1742583235082,21.4751779,127.75,127.7,21.4421779]
[1742583235262,7.8284,127.74,127.7,0.03]
[1742583235470,21.4121779,127.73,127.7,0.03]
[1742583235985,21.4121779,127.74,127.7,0.03]
[1742583236290,29.3032779,127.75,127.7,21.4421779]
[1742583236889,29.3032779,127.75,127.7,0.03]
[1742583237691,29.2411779,127.73,127.7,0.03]
[1742583238076,7.829,127.73,127.7,0.03]
[1742583238269,7.8285,127.74,127.7,21.4421779]
[1742583239693,29.2406779,127.74,127.7,0.03]
[1742583241488,21.4121779,127.73,127.7,0.03]
[1742583241695,29.2406779,127.74,127.7,0.03]
[1742583242106,21.4121779,127.73,127.7,0.03]
[1742583242886,29.2414779,127.73,127.7,0.03]
[1742583243281,7.8293,127.73,127.7,0.03]
[1742583243576,7.8909,127.75,127.71,21.4121779]
[1742583243971,29.3030779,127.75,127.7,21.4421779]
[1742583244779,29.3030779,127.75,127.7,29.2726779]
[1742583246091,0.063,127.75,127.72,21.4121779]
[1742583246594,0.063,127.75,127.71,29.2423779]
[1742583247177,0.063,127.75,127.72,21.4121779]
[1742583248181,0.063,127.75,127.72,29.2417779]
[1742583250275,0.063,127.75,127.73,21.4121779]
[1742583250580,0.063,127.75,127.74,21.4121779]
[1742583250790,21.4751779,127.75,127.72,8.56]
[1742583250995,21.4121779,127.74,127.7,0.03]
[1742583252286,29.2408779,127.74,127.7,0.03]
[1742583253586,21.4121779,127.73,127.7,0.03]
[1742583253784,7.8287,127.74,127.7,0.03]
[1742583253785,21.4121779,127.72,127.7,0.03]
[1742583253987,21.4121779,127.73,127.7,0.03]
[1742583254713,7.8296,127.72,127.7,0.03]
[1742583255290,7.8293,127.73,127.7,0.03]
[1742583255607,29.2414779,127.73,127.7,0.03]
[1742583256100,21.4121779,127.72,127.7,0.03]
[1742583256295,29.2414779,127.73,127.7,0.03]
[1742583258797,21.4121779,127.72,127.7,0.03]
[1742583260005,7.8302,127.71,127.7,0.03]
[1742583261299,29.2423779,127.71,127.7,0.03]
[1742583261695,31.080139,127.71,127.7,0.03]
[1742583262293,20.0,127.68,127.65,0.03]
[1742583262493,21.4121779,127.68,127.65,0.03]
[1742583262708,21.4121779,127.67,127.65,0.03]
[1742583262903,21.4121779,127.66,127.65,0.03]
[1742583263314,27.494739,127.66,127.65,0.03]
[1742583264014,33.4902779,127.66,127.65,0.03]
[1742583264542,33.77460104,127.66,127.65,0.03]
[1742583265021,33.77460104,127.66,127.59,29.2494779]
[1742583265227,21.4121779,127.64,127.59,29.2494779]
[1742583266322,21.4121779,127.63,127.58,21.4121779]
[1742583266825,29.2466779,127.64,127.59,21.4121779]
[1742583267708,29.2460779,127.65,127.6,21.4121779]
[1742583267904,7.8339,127.65,127.61,21.4121779]
[1742583268127,29.2460779,127.65,127.6,21.4121779]
[1742583268335,29.2460779,127.65,127.57,27.4656]
[1742583268538,29.2460779,127.65,127.6,21.4121779]
[1742583268714,21.4121779,127.64,127.59,21.4121779]
[1742583269131,30.79951586,127.65,127.6,21.4121779]
[1742583269334,29.2460779,127.65,127.6,21.4121779]
[1742583269540,21.4121779,127.64,127.59,21.4121779]
[1742583269926,7.8339,127.65,127.6,21.4121779]
[1742583270235,29.2460779,127.65,127.6,21.4121779]
[1742583270435,29.2460779,127.65,127.6,29.2488779]
[1742583270945,29.2460779,127.65,127.6,21.4121779]
[1742583271647,29.2460779,127.65,127.59,7.8373]
[1742583271648,21.4121779,127.64,127.59,29.2494779]
[1742583272645,21.4121779,127.63,127.58,29.2501779]
[1742583273412,29.2471779,127.64,127.59,21.4121779]
[1742583274348,21.4121779,127.63,127.58,21.4121779]
[1742583275342,29.2471779,127.64,127.59,21.4121779]
[1742583276322,29.2471779,127.64,127.59,29.2493779]
[1742583277341,21.4121779,127.63,127.58,29.2499779]
[1742583279063,29.2472779,127.63,127.58,29.2499779]
[1742583279346,7.8351,127.63,127.59,21.4121779]
[1742583279647,29.2472779,127.63,127.58,29.2499779]
[1742583279948,21.4121779,127.63,127.58,29.2499779]
[1742583280140,29.2469779,127.64,127.59,21.4121779]
[1742583281247,29.2469779,127.64,127.59,29.2495779]
[1742583281631,21.4121779,127.63,127.59,7.8374]
[1742583282351,21.4121779,127.62,127.57,29.2806779]
[1742583282533,21.4121779,127.6,127.57,0.03]
[1742583283250,7.8376,127.59,127.57,0.03]
[1742583283451,29.2497779,127.59,127.57,0.03]
[1742583283850,21.4121779,127.58,127.57,0.03]
[1742583284157,7.9913,127.61,127.57,0.03]
[1742583284325,37.2400779,127.61,127.57,0.03]
[1742583284646,21.4121779,127.58,127.57,0.03]
[1742583285436,29.2502779,127.59,127.57,0.03]
[1742583286324,7.8381,127.59,127.57,0.03]
[1742583286526,29.2502779,127.59,127.57,0.03]
[1742583286732,29.2498779,127.59,127.57,0.03]
[1742583287648,21.4121779,127.6,127.57,0.03]
[1742583287948,25.4434779,127.63,127.57,0.03]
[1742583288133,21.4121779,127.61,127.57,21.4421779]
[1742583288335,21.4121779,127.61,127.57,0.03]
[1742583289457,29.2487779,127.61,127.57,0.03]
[1742583291949,21.4121779,127.59,127.57,0.03]
[1742583292251,7.837,127.6,127.57,0.03]
[1742583292252,21.4121779,127.58,127.57,0.03]
[1742583293146,13.82743951,127.58,127.57,0.03]
[1742583294841,21.66563951,127.58,127.57,0.03]
[1742583295342,13.82743951,127.58,127.57,0.03]
[1742583296947,21.66563951,127.58,127.57,0.03]
[1742583297460,13.82743951,127.59,127.57,0.03]
[1742583298963,21.66503951,127.59,127.57,0.03]
[1742583299432,7.837,127.6,127.57,0.03]
[1742583299633,21.66403951,127.61,127.57,0.03]
[1742583300253,19.5903,127.62,127.57,13.85743951]
[1742583300254,21.66343951,127.62,127.57,13.85743951]
[1742583300535,25.69403951,127.63,127.58,13.82743951]
[1742583300749,26.54513951,127.65,127.6,13.82743951]
[1742583300950,18.08003951,127.65,127.6,13.82743951]
[1742583301256,25.91393951,127.65,127.6,21.66373951]
[1742583302534,21.66133951,127.65,127.6,21.66373951]
[1742583303240,29.41778831,127.65,127.6,21.58388831]
[1742583304154,21.58388831,127.65,127.6,21.58388831]
[1742583304368,21.58388831,127.65,127.58,27.4337]
[1742583304369,21.58388831,127.67,127.62,21.58388831]
[1742583304664,21.58388831,127.68,127.64,21.58388831]
[1742583305033,21.58388831,127.68,127.63,21.58388831]
[1742583305454,29.41608831,127.68,127.63,29.41858831]
[1742583306154,4.0141,127.7,127.66,21.58388831]
[1742583306360,7.8296,127.72,127.66,21.58388831]
[1742583306542,7.8296,127.72,127.65,8.54]
[1742583306543,21.58388831,127.71,127.67,21.58388831]
[1742583306866,21.58388831,127.71,127.66,21.58388831]
[1742583307353,21.58388831,127.72,127.67,21.58388831]
[1742583307555,29.41308831,127.73,127.68,21.58388831]
[1742583308138,7.8292,127.73,127.69,21.58388831]
[1742583308431,7.8292,127.73,127.69,30.12388831]
[1742583308657,7.8292,127.73,127.69,8.54]
[1742583309056,29.41248831,127.74,127.69,30.12388831]
[1742583309455,7.8302,127.71,127.69,8.54]
[1742583309659,7.8302,127.71,127.67,21.58388831]
[1742583309863,7.8298,127.72,127.68,21.58388831]
[1742583310053,20.0,127.69,127.6,8.4623]
[1742583310239,21.58388831,127.65,127.6,21.58388831]
[1742583310662,21.58388831,127.66,127.61,21.58388831]
[1742583310868,21.58388831,127.64,127.58,21.58388831]
[1742583311042,21.58388831,127.64,127.59,21.58388831]
[1742583311542,7.8351,127.63,127.59,21.58388831]
[1742583311738,29.41858831,127.64,127.59,21.58388831]
[1742583312060,41.58388831,127.6,127.57,0.03]
[1742583312256,21.58388831,127.58,127.57,0.03]
[1742583312667,21.58388831,127.59,127.57,0.03]
[1742583312967,41.58388831,127.6,127.57,0.03]
[1742583313143,21.58388831,127.61,127.57,0.03]
[1742583313845,29.42078831,127.6,127.57,0.03]
[1742583314048,7.8369,127.6,127.57,0.03]
[1742583314367,29.42078831,127.6,127.57,0.03]
[1742583316764,21.58388831,127.59,127.57,0.03]
[1742583317446,49.01318831,127.6,127.57,0.03]
[1742583318163,21.58388831,127.59,127.57,0.03]
[1742583318670,21.58388831,127.59,127.5,2.7094138]
[1742583318671,64.72121458,127.58,127.5,2.7094138]
[1742583318842,21.58388831,127.54,127.5,2.7094138]
[1742583319044,21.58388831,127.56,127.51,21.58388831]
[1742583319350,41.58388831,127.56,127.51,21.58388831]
[1742583319548,21.58388831,127.55,127.5,32.81330211]
[1742583320147,21.58388831,127.53,127.5,2.7094138]
[1742583320361,21.58388831,127.54,127.5,2.7094138]
[1742583321049,21.58388831,127.55,127.5,24.29330211]
[1742583321443,41.58388831,127.56,127.51,21.58388831]
[1742583322046,21.58388831,127.55,127.5,24.29330211]
[1742583322267,8.5498,127.6,127.53,21.58388831]
[1742583322471,21.58388831,127.58,127.53,21.58388831]
[1742583323268,16.3868,127.6,127.53,21.58388831]
[1742583323472,21.58388831,127.57,127.52,21.58388831]
[1742583323654,20.0,127.59,127.53,21.58388831]
[1742583323970,21.58388831,127.59,127.54,21.58388831]
[1742583324272,21.58388831,127.58,127.53,21.58388831]
[1742583324958,21.58388831,127.57,127.52,0.28432314]
[1742583325159,1.55343796,127.6,127.52,21.86821145]
[1742583325345,21.58388831,127.56,127.51,7.8423]
[1742583325549,21.58388831,127.56,127.51,8.52]
[1742583325750,21.58388831,127.57,127.52,21.58388831]
[1742583325950,41.58388831,127.58,127.53,21.86821145]
[1742583327168,21.58388831,127.58,127.53,21.86821145]
[1742583327763,21.58388831,127.59,127.53,21.86821145]
[1742583327961,21.58388831,127.59,127.53,29.70941145]
[1742583328164,21.58388831,127.59,127.54,29.42448831]
[1742583328473,21.58388831,127.59,127.53,29.70921145]
[1742583329383,21.58388831,127.57,127.53,8.12532314]
[1742583329678,21.58388831,127.58,127.53,29.70921145]
[1742583330274,21.58388831,127.58,127.53,16.64532314]
[1742583330458,21.58388831,127.58,127.54,0.03]
[1742583330777,21.58388831,127.57,127.54,0.03]
[1742583331076,7.8372,127.6,127.54,0.03]
[1742583331376,21.58388831,127.59,127.54,21.61388831]
[1742583331563,21.58388831,127.59,127.54,29.45418831]
[1742583332676,21.58388831,127.6,127.55,21.58388831]
[1742583332855,21.58388831,127.61,127.57,8.1395]
[1742583333058,7.8361,127.62,127.57,8.1395]
[1742583333059,0.063,127.65,127.6,21.58388831]
[1742583333256,0.063,127.65,127.62,21.58388831]
[1742583333481,0.063,127.65,127.62,30.10388831]
[1742583333777,0.063,127.65,127.62,16.3551]
[1742583333956,21.64688831,127.65,127.62,8.52]
[1742583334454,21.58388831,127.64,127.59,30.10388831]
[1742583334653,21.58388831,127.64,127.59,8.52]
[1742583334867,21.58388831,127.62,127.59,8.52]
[1742583335079,21.58388831,127.61,127.57,231.7381]
[1742583336877,7.8355,127.63,127.58,21.58388831]
[1742583337068,21.58388831,127.64,127.59,21.86821145]
[1742583337882,21.58388831,127.64,127.59,29.70521145]
[1742583338380,0.063,127.65,127.61,21.58388831]
[1742583338569,0.063,127.65,127.62,21.58388831]
[1742583338969,0.063,127.65,127.61,30.10388831]
[1742583339277,21.58388831,127.64,127.61,8.52]
[1742583339872,7.8351,127.63,127.61,8.52]
[1742583340074,7.8347,127.64,127.61,8.52]
[1742583340390,29.48098831,127.65,127.61,8.52]
[1742583340763,29.48098831,127.65,127.61,30.10388831]
[1742583341186,29.48098831,127.65,127.61,8.52]
[1742583343682,0.063,127.65,127.61,37.93998831]
[1742583344182,41.64688831,127.65,127.6,30.08388831]
[1742583344482,21.58388831,127.62,127.6,8.5]
[1742583344683,41.58388831,127.63,127.58,21.58388831]
[1742583345071,41.58388831,127.63,127.58,29.42178831]
[1742583345265,20.0,127.63,127.59,21.58388831]
[1742583345465,21.64688831,127.65,127.6,21.58388831]
[1742583345680,0.063,127.65,127.61,21.58388831]
[1742583345889,0.063,127.65,127.61,30.08388831]
[1742583346182,0.063,127.65,127.61,37.91988831]
[1742583348188,21.64688831,127.65,127.61,8.5]
[1742583348486,0.063,127.65,127.61,30.08388831]
[1742583350092,21.64688831,127.65,127.61,8.5]
[1742583350390,29.48098831,127.65,127.61,8.5]
[1742583351167,29.48098831,127.65,127.61,16.3363]
[1742583351367,29.48098831,127.65,127.61,8.5]
[1742583351992,7.8971,127.65,127.61,30.08388831]
[1742583352283,7.8971,127.65,127.61,37.92008831]